lending/lending_fUSD_20260330
["ID","MTS","AMOUNT","RATE_DAILY","PERIOD"]
[419093644,1774865444096,-151.0,0.00013564,2]
[419093645,1774865444111,-151.0,0.00013564,2]
[419093646,1774865444126,-500.0,0.00013908,2]
[419093648,1774865444140,-255.0,0.00013939,2]
[419093650,1774865444153,-200.0,0.00013997,2]
[419093652,1774865444167,-200.0,0.00014027,2]
[419093653,1774865444180,-260.14,0.00014027,2]
[419093654,1774865444194,-1600.0,0.00014077,2]
[419093656,1774865444207,-2500.0,0.00014119,2]
[419093658,1774865444220,-2500.0,0.00014119,2]
[419093659,1774865444233,-2500.0,0.00014119,2]
[419093660,1774865444246,-2500.0,0.00014119,2]
[419093662,1774865444259,-2500.0,0.00014119,2]
[419093664,1774865444273,-600.0,0.00014119,2]
[419093665,1774865444286,-200.0,0.00014119,2]
[419093666,1774865444300,-238.99363714,0.00014119,2]
[419093667,1774865444313,-500.0,0.00014119,2]
[419093668,1774865444326,-500.0,0.00014119,2]
[419093669,1774865444339,-500.0,0.00014119,2]
[419093670,1774865444353,-500.0,0.00014119,2]
[419093671,1774865444366,-500.0,0.00014119,2]
[419093672,1774865444379,-300.0,0.00014119,2]
[419093673,1774865444393,-300.0,0.00014119,2]
[419093674,1774865444406,-300.0,0.00014119,2]
[419093675,1774865444420,-300.0,0.00014119,2]
[419093676,1774865444433,-250.0,0.00014119,2]
[419093677,1774865444447,-200.0,0.00014119,2]
[419093678,1774865444459,-200.0,0.00014119,2]
[419093679,1774865444473,-200.0,0.00014119,2]
[419093680,1774865444486,-285.88,0.00014138,2]
[419093681,1774865444500,-150.0,0.00014249,2]
[419093682,1774865444513,-500.0,0.00014259,2]
[419093683,1774865444525,-150.0,0.000144,2]
[419093684,1774865444539,-300.0,0.00014403,2]
[419093685,1774865444551,-2526.90929155,0.00014403,2]
[419093686,1774865444567,-195.0,0.00014403,2]
[419093687,1774865444580,-250.0,0.00014403,2]
[419093688,1774865444593,-3060.87132214,0.00014403,2]
[419093689,1774865444607,-195.0,0.00014403,2]
[419093690,1774865444620,-195.0,0.00014403,2]
[419093691,1774865444634,-389.02,0.0001456,2]
[419093692,1774865444649,-170.11,0.00014581,2]
[419093693,1774865444662,-500.0,0.00014801,2]
[419093694,1774865444676,-500.0,0.00014801,2]
[419093695,1774865444689,-500.0,0.00014801,2]
[419093696,1774865444701,-500.0,0.00014801,2]
[419093697,1774865444715,-500.0,0.00014801,2]
[419093698,1774865444727,-500.0,0.00014801,2]
[419093699,1774865444741,-500.0,0.00014801,2]
[419093700,1774865444754,-500.0,0.00014801,2]
[419093701,1774865444766,-500.0,0.00014801,2]
[419093702,1774865444779,-500.0,0.00014801,2]
[419093703,1774865444791,-500.0,0.00014801,2]
[419093704,1774865444804,-500.0,0.00014801,2]
[419093705,1774865444816,-174.61919141,0.00014801,2]
[419093706,1774865444829,-500.0,0.00014856,2]
[419093707,1774865444843,-6014.0,0.00014908,2]
[419093708,1774865444856,-2468.0,0.00014908,2]
[419093709,1774865444868,-415.0,0.00014908,2]
[419093710,1774865444881,-500.0,0.00014911,2]
[419093711,1774865444893,-500.0,0.00014966,2]
[419093712,1774865444906,-200.0,0.00015,2]
[419093713,1774865444918,-160.85,0.00015,2]
[419093714,1774865444931,-3929.04607602,0.00015,7]
[419093715,1774865444945,-300.0,0.00015,2]
[419093716,1774865444959,-500.0,0.00015021,2]
[419093717,1774865444972,-500.0,0.00015076,2]
[419093718,1774865444984,-1000.0,0.00015083,2]
[419093719,1774865444996,-500.0,0.00015131,2]
[419093720,1774865445009,-195.0,0.00015133,2]
[419093721,1774865445022,-500.0,0.00015186,2]
[419093722,1774865445034,-150.0,0.00015198,2]
[419093723,1774865445046,-150.0,0.00015198,2]
[419093724,1774865445058,-150.0,0.00015198,2]
[419093725,1774865445071,-150.0,0.00015198,2]
[419093726,1774865445084,-150.0,0.00015198,2]
[419093727,1774865445096,-150.0,0.00015198,2]
[419093728,1774865445108,-150.0,0.00015198,2]
[419093729,1774865445120,-150.0,0.00015198,2]
[419093730,1774865445132,-150.0,0.00015198,2]
[419093731,1774865445144,-621.0,0.00015198,2]
[419093732,1774865445156,-1346.0,0.00015198,2]
[419093733,1774865445168,-3518.0,0.00015198,2]
[419093734,1774865445180,-1045.0,0.00015198,2]
[419093735,1774865445191,-1262.0,0.00015198,2]
[419093736,1774865445202,-925.0,0.00015198,2]
[419093737,1774865445214,-1216.0,0.00015198,2]
[419093738,1774865445226,-10000.0,0.00015205,2]
[419093739,1774865445239,-500.0,0.00015241,2]
[419093740,1774865445252,-500.0,0.00015263,2]
[419093741,1774865445263,-500.0,0.00015296,2]
[419093742,1774865445276,-2096.941,0.00015327,2]
[419093743,1774865445289,-155.703,0.00015327,2]
[419093744,1774865445301,-1376.63026124,0.00015327,2]
[419093745,1774865445313,-370.65953935,0.00015327,2]
[419093746,1774865445325,-379.35515526,0.00015327,2]
[419093747,1774865445337,-181.08010149,0.00015349,2]
[419093748,1774865445350,-500.0,0.00015351,2]
[419093749,1774865445361,-2033.0,0.00015363,2]
[419093750,1774865445373,-1064.0,0.00015363,2]
[419093751,1774865445385,-867.0,0.00015363,2]
[419093752,1774865445396,-2063.0,0.00015363,2]
[419093753,1774865445408,-1241.0,0.00015363,2]
[419093754,1774865445420,-1084.0,0.00015363,2]
[419093755,1774865445431,-8706.0,0.00015363,2]
[419093756,1774865445443,-4000.0,0.00015507,2]
[419093757,1774865445455,-595.44,0.00015565,3]
[419093758,1774865445467,-196.6979,0.000157,7]
[419093759,1774865445478,-1600.0,0.00015837,2]
[419093760,1774865445490,-500.0,0.00015872,2]
[419093761,1774865445502,-200.0,0.00015872,2]
[419093762,1774865445514,-2000.0,0.0001589,2]
[419093763,1774865445526,-4000.0,0.00015895,2]
[419093764,1774865445538,-187.78006525,0.00015897,2]
[419093765,1774865445550,-2500.0,0.00015899,2]
[419093766,1774865445561,-302.0,0.000159,3]
[419093767,1774865445573,-851.4828,0.000159,2]
[419093768,1774865445585,-5000.0,0.000159,2]
[419093769,1774865445596,-7694.5433953,0.000159,2]
[419093770,1774865445608,-4676.3240135,0.00015952,2]
[419093771,1774865445620,-35340.6174923,0.00015957,2]
[419093772,1774865445632,-4444.9139405,0.00015957,2]
[419093773,1774865445644,-151.0,0.00015997,2]
[419093774,1774865445658,-666.0,0.00015999,2]
[419093775,1774865445671,-200.0,0.00015999,2]
[419093776,1774865445683,-135948.83315497,0.00016,2]
[419093777,1774865445695,-93354.71569529,0.00016,2]
[419093793,1774865448135,-1142.32987293,0.00012579,2]
[419093794,1774865448145,-1135.52410908,0.00012579,2]
[419093795,1774865448154,-8497.31052619,0.00016,2]
[419093796,1774865448194,-1399.4,0.00016,2]
[419093797,1774865852951,846.21,6.868e-05,2]
[419093798,1774865853043,846.21,7.229e-05,2]
[419093799,1774865853123,846.21,7.591e-05,2]
[419093800,1774865853200,846.21,7.952e-05,2]
[419093801,1774865853396,846.21,8.314e-05,2]
[419094154,1774866425116,-241.0,8.675e-05,2]
[419094155,1774866425137,-193.0,8.675e-05,2]
[419094156,1774866425160,-3155.40831302,8.675e-05,2]
[419094157,1774866426847,526.89,7.785e-05,2]
[419094192,1774866489570,995.27,7.533e-05,2]
[419094208,1774866551128,-1844.59168698,8.675e-05,2]
[419094209,1774866551149,-250.0,8.675e-05,2]
[419094210,1774866551171,-846.21,8.675e-05,2]
[419094211,1774866551192,-300.0,8.717e-05,2]
[419094212,1774866551213,-300.0,8.717e-05,2]
[419094213,1774866551234,-3496.56724882,8.718e-05,2]
[419094214,1774866563088,-1503.43275118,8.718e-05,2]
[419094215,1774866563108,-5000.0,8.718e-05,2]
[419094216,1774866563130,-283.68606926,8.764e-05,2]
[419094217,1774866563151,-846.21,9.037e-05,2]
[419094218,1774866563174,-150.0,9.3e-05,2]
[419094219,1774866563195,-300.0,9.396e-05,2]
[419094220,1774866563215,-248.0,9.396e-05,2]
[419094221,1774866563236,-1200.0,9.396e-05,2]
[419094222,1774866563257,-846.21,9.398e-05,2]
[419094223,1774866563277,-150.0,9.542e-05,2]
[419094224,1774866563298,-5000.0,9.543e-05,2]
[419094225,1774866563319,-193.0,9.543e-05,2]
[419094226,1774866563340,-250.0,9.543e-05,2]
[419094227,1774866563361,-152.0,9.589e-05,2]
[419094228,1774866563382,-420.0,9.589e-05,2]
[419094229,1774866563708,1044.3934192,9.397e-05,2]
[419094230,1774866564993,1233.46056281,9.397e-05,2]
[419094262,1774866635314,-190.83,9.743e-05,2]
[419094263,1774866635328,-256.0,9.743e-05,2]
[419094264,1774866635342,-846.21,9.759e-05,2]
[419094265,1774866635357,-1200.0,9.999e-05,2]
[419094266,1774866635371,-150.0,9.999e-05,2]
[419094267,1774866635386,-300.0,9.999e-05,2]
[419094268,1774866635401,-500.0,0.0001,2]
[419094269,1774866635415,-500.0,0.0001,2]
[419094270,1774866635432,-500.0,0.0001,2]
[419094271,1774866635446,-500.0,0.0001,2]
[419094272,1774866635460,-500.0,0.0001,2]
[419094273,1774866635474,-500.0,0.0001,2]
[419094274,1774866635489,-151.0,0.0001,2]
[419094275,1774866635503,-500.0,0.0001,2]
[419094276,1774866635517,-151.0,0.0001,2]
[419094277,1774866635531,-500.0,0.0001,2]
[419094278,1774866635545,-151.0,0.0001,2]
[419094279,1774866635559,-500.0,0.0001,2]
[419094280,1774866635573,-151.0,0.0001,2]
[419094281,1774866635587,-151.0,0.0001,2]
[419094282,1774866635602,-500.0,0.0001,2]
[419094283,1774866635617,-151.0,0.0001,2]
[419094284,1774866635631,-151.0,0.0001,2]
[419094285,1774866635647,-500.0,0.0001,2]
[419094286,1774866635661,-151.0,0.0001,2]
[419094287,1774866635674,-151.0,0.0001,2]
[419094288,1774866635689,-151.0,0.0001,2]
[419094289,1774866635703,-151.0,0.0001,2]
[419094290,1774866635717,-151.0,0.0001,2]
[419094291,1774866635731,-151.0,0.0001,2]
[419094292,1774866635745,-151.0,0.0001,2]
[419094293,1774866635759,-151.0,0.0001,2]
[419094294,1774866635772,-151.0,0.0001,2]
[419094295,1774866635786,-151.0,0.0001,2]
[419094296,1774866635799,-151.0,0.0001,2]
[419094297,1774866635813,-151.0,0.0001,2]
[419094298,1774866635828,-151.0,0.0001,2]
[419094299,1774866635842,-151.0,0.0001,2]
[419094300,1774866635856,-151.0,0.0001,2]
[419094301,1774866635870,-500.0,0.0001,2]
[419094302,1774866635885,-500.0,0.0001,2]
[419094303,1774866635899,-500.0,0.0001,2]
[419094304,1774866635913,-500.0,0.0001,2]
[419094305,1774866635927,-500.0,0.0001,2]
[419094306,1774866635940,-500.0,0.0001,2]
[419094307,1774866635954,-500.0,0.0001,2]
[419094308,1774866635969,-372.0,0.00010074,2]
[419094309,1774866635982,-433.19377244,0.00010074,2]
[419094310,1774866635997,-846.21,0.00010121,2]
[419094311,1774866636011,-500.0,0.00010475,2]
[419094312,1774866636024,-500.0,0.00010475,2]
[419094313,1774866636038,-500.0,0.00010475,2]
[419094314,1774866636052,-500.0,0.00010475,2]
[419094315,1774866636067,-500.0,0.00010475,2]
[419094316,1774866636082,-846.21,0.00010482,2]
[419094317,1774866636096,-500.0,0.00010496,2]
[419094318,1774866636110,-150.0,0.000105,2]
[419094319,1774866636123,-500.0,0.0001077,2]
[419094320,1774866636137,-250.0,0.00010818,2]
[419094321,1774866636150,-846.21,0.00010844,2]
[419094322,1774866636164,-1680.0,0.00010999,2]
[419094323,1774866636177,-255.0,0.00010999,2]
[419094324,1774866636191,-1001.48601759,0.00011023,2]
[419094325,1774866636205,-374.32048966,0.00011023,2]
[419094326,1774866636219,-1000.0,0.00011023,2]
[419094327,1774866636234,-846.21,0.00011205,2]
[419094328,1774866636248,-1707.79,0.00011507,2]
[419094329,1774866636262,-171.622813,0.00011517,2]
[419094330,1774866636276,-846.21,0.00011567,2]
[419094331,1774866636290,-502.16371872,0.00011571,2]
[419094332,1774866636304,-500.0,0.000119,2]
[419094333,1774866636319,-500.0,0.000119,2]
[419094334,1774866636333,-846.21,0.00011928,2]
[419094335,1774866636347,-196.6918,0.00012,7]
[419094336,1774866636360,-2351.0,0.00012099,2]
[419094337,1774866636373,-433.0,0.00012099,2]
[419094338,1774866636388,-4635.64,0.00012207,2]
[419094339,1774866636400,-1500.0,0.00012261,2]
[419094340,1774866636414,-9858.53,0.0001228,2]
[419094341,1774866636427,-846.21,0.0001229,2]
[419094342,1774866636441,-2000.0,0.00012416,2]
[419094343,1774866636455,-500.0,0.00012448,2]
[419094344,1774866636469,-150.0,0.00012465,2]
[419094345,1774866636483,-1098.0866745,0.00012579,2]
[419094346,1774866636497,-1092.64721518,0.00012579,2]
[419094347,1774866636510,-193.16,0.00012601,2]
[419094348,1774866636523,-846.21,0.00012651,2]
[419094349,1774866636537,-500.0,0.00012735,2]
[419094350,1774866636550,-48214.1483,0.00012736,2]
[419094351,1774866636563,-1373.69048384,0.00012888,2]
[419094352,1774866636577,-846.21,0.00013012,2]
[419094353,1774866636591,-3292.0,0.00013309,2]
[419094354,1774866636605,-586.0,0.00013309,2]
[419094355,1774866636619,-160.0,0.00013364,2]
[419094356,1774866636632,-160.0,0.00013366,2]
[419094357,1774866636646,-846.21,0.00013374,2]
[419094358,1774866636659,-257.9179,0.000134,12]
[419094359,1774866636673,-150.0,0.00013699,2]
[419094360,1774866636687,-150.0,0.00013699,2]
[419094361,1774866636701,-150.0,0.00013699,2]
[419094362,1774866636715,-150.0,0.00013699,2]
[419094363,1774866636728,-150.0,0.00013699,2]
[419094364,1774866636742,-255.53,0.00013699,2]
[419094365,1774866636755,-212.94,0.00013699,2]
[419094366,1774866636768,-177.45,0.00013699,2]
[419094367,1774866636782,-887.29,0.00013699,2]
[419094368,1774866636795,-9999.99,0.00013699,2]
[419094369,1774866636809,-150.99,0.00013699,2]
[419094370,1774866636823,-1069.53,0.00013699,2]
[419094371,1774866636836,-6229.77,0.00013699,2]
[419094372,1774866636849,-846.21,0.00013735,2]
[419094373,1774866636862,-383.03129421,0.00013767,2]
[419094374,1774866636876,-2000.0,0.00013968,2]
[419094375,1774866636889,-150.0,0.00013973,2]
[419094376,1774866636904,-150.0,0.00013973,2]
[419094377,1774866636918,-150.0,0.00013973,2]
[419094378,1774866636931,-150.0,0.00013973,2]
[419094379,1774866636944,-150.0,0.00013973,2]
[419094380,1774866636957,-383.03129412,0.00014004,2]
[419094381,1774866636970,-9521.55,0.00014052,2]
[419094382,1774866636983,-3165.23481391,0.00014119,2]
[419094383,1774866636995,-2222.8763441,0.00014119,2]
[419094384,1774866637009,-1047.50940685,0.00014119,2]
[419094385,1774866637021,-928.5802346,0.00014119,2]
[419094386,1774866637034,-500.0,0.00014137,2]
[419094387,1774866637048,-383.03129412,0.00014241,2]
[419094388,1774866637060,-150.0,0.00014247,2]
[419094389,1774866637073,-150.0,0.00014247,2]
[419094390,1774866637086,-150.0,0.00014247,2]
[419094391,1774866637098,-150.0,0.00014247,2]
[419094392,1774866637110,-383.03129412,0.00014478,2]
[419094393,1774866637123,-383.03129412,0.00014715,2]
[419094394,1774866637137,-151.0,0.00014734,2]
[419094395,1774866637149,-500.0,0.00014778,2]
[419094396,1774866637161,-500.0,0.0001484,2]
[419094397,1774866637173,-300.04128,0.0001484,2]
[419094398,1774866637186,-286.75204283,0.0001484,2]
[419094399,1774866637199,-151.0,0.0001484,2]
[419094400,1774866637211,-174.61919141,0.0001484,2]
[419094401,1774866637224,-500.0,0.0001484,2]
[419094402,1774866637235,-500.0,0.0001484,2]
[419094403,1774866637248,-500.0,0.0001484,2]
[419094404,1774866637260,-500.0,0.0001484,2]
[419094405,1774866637273,-500.0,0.0001484,2]
[419094406,1774866637286,-500.0,0.0001484,2]
[419094407,1774866637299,-500.0,0.0001484,2]
[419094408,1774866637312,-500.0,0.0001484,2]
[419094409,1774866637324,-500.0,0.0001484,2]
[419094410,1774866637335,-500.0,0.0001484,2]
[419094411,1774866637349,-500.0,0.0001484,2]
[419094412,1774866637362,-500.0,0.00014895,2]
[419094413,1774866637374,-338.2023,0.000149,17]
[419094414,1774866637386,-500.0,0.0001495,2]
[419094415,1774866637398,-383.03129412,0.00014952,2]
[419094416,1774866637410,-160.0,0.00014958,7]
[419094417,1774866637422,-347.404719,0.00014958,7]
[419094418,1774866637434,-787.7737,0.00015,2]
[419094419,1774866637445,-500.0,0.00015005,2]
[419094420,1774866637458,-500.0,0.0001506,2]
[419094421,1774866637470,-280.091109,0.00015063,7]
[419094422,1774866637484,-396.75,0.00015068,2]
[419094423,1774866637497,-2500.0,0.00015098,2]
[419094424,1774866637509,-500.0,0.00015115,2]
[419094425,1774866637522,-500.0,0.0001517,2]
[419094426,1774866637535,-383.03129412,0.00015189,2]
[419094427,1774866637547,-1262.0,0.00015198,2]
[419094428,1774866637559,-1216.0,0.00015198,2]
[419094429,1774866637572,-925.0,0.00015198,2]
[419094430,1774866637584,-2468.0,0.00015198,2]
[419094431,1774866637596,-1346.0,0.00015198,2]
[419094432,1774866637608,-161.0,0.00015241,2]
[419094433,1774866637620,-1571.0,0.00015241,2]
[419094434,1774866637632,-32997.7747,0.00015263,2]
[419094435,1774866637645,-1000.0,0.00015263,2]
[419094436,1774866637658,-2415.111,0.00015296,2]
[419094437,1774866637671,-184.094,0.00015296,2]
[419094438,1774866637684,-171.656471,0.00015366,7]
[419094439,1774866637696,-181.08010149,0.00015388,2]
[419094440,1774866637709,-1571.0,0.000154,2]
[419094441,1774866637721,-1571.0,0.000154,2]
[419094442,1774866637734,-383.03129412,0.00015426,2]
[419094443,1774866637747,-160.0,0.00015458,7]
[419094444,1774866637759,-160.0,0.00015481,7]
[419094445,1774866637772,-2000.0,0.0001552,2]
[419094446,1774866637785,-1571.0,0.00015641,2]
[419094447,1774866637798,-383.03129412,0.00015663,2]
[419094448,1774866637812,-3283.18210666,0.0001568,2]
[419094449,1774866637824,-1005.74526898,0.0001568,2]
[419094450,1774866637837,-1123.03151921,0.0001568,2]
[419094451,1774866637849,-1111.3777733,0.0001568,2]
[419094452,1774866637861,-1071.21836291,0.0001568,2]
[419094453,1774866637873,-1788.64000165,0.0001568,2]
[419094454,1774866637885,-250.0,0.00015684,2]
[419094455,1774866637898,-250.0,0.00015684,2]
[419094456,1774866637909,-250.0,0.00015684,2]
[419094457,1774866637922,-250.0,0.00015684,2]
[419094458,1774866637936,-250.0,0.00015684,2]
[419094459,1774866637949,-250.0,0.00015684,2]
[419094460,1774866637961,-250.0,0.00015684,2]
[419094461,1774866637973,-250.0,0.00015684,2]
[419094462,1774866637985,-250.0,0.00015684,2]
[419094463,1774866637997,-250.0,0.00015684,2]
[419094464,1774866638009,-250.0,0.00015684,2]
[419094465,1774866638021,-250.0,0.00015684,2]
[419094466,1774866638034,-222.256034,0.00015684,2]
[419094467,1774866638046,-1799.05,0.00015684,2]
[419094468,1774866638058,-3947.06,0.00015684,2]
[419094469,1774866638070,-277.0,0.0001572,2]
[419094470,1774866638083,-230.0,0.00015762,2]
[419094471,1774866638095,-2388.41395039,0.00015774,2]
[419094472,1774866638107,-2535.55162887,0.00015774,2]
[419094473,1774866638119,-954.0,0.00015781,2]
[419094474,1774866638132,-168.0,0.00015783,2]
[419094475,1774866638145,-2535.55162881,0.00015788,2]
[419094476,1774866638157,-171.0,0.00015792,2]
[419094477,1774866638170,-2388.41395033,0.00015792,2]
[419094478,1774866638182,-2535.55162881,0.00015802,2]
[419094479,1774866638195,-2388.41395033,0.0001581,2]
[419094480,1774866638207,-2535.55162881,0.00015816,2]
[419094481,1774866638219,-2388.41395033,0.00015828,2]
[419094482,1774866639009,-2535.55162881,0.0001583,2]
[419094483,1774866639054,-1404.79282,0.0001584,2]
[419094484,1774866639088,-1404.79282,0.0001584,2]
[419094485,1774866639116,-1404.79282,0.0001584,2]
[419094486,1774866639126,-2535.55162881,0.00015844,2]
[419094487,1774866639135,-2388.41395033,0.00015846,2]
[419094488,1774866639145,-2535.55162881,0.00015858,2]
[419094489,1774866639154,-168.0,0.00015863,2]
[419094490,1774866639164,-2388.41395033,0.00015864,2]
[419094491,1774866639174,-168.0,0.00015866,2]
[419094492,1774866639183,-500.0,0.00015871,2]
[419094493,1774866639193,-500.0,0.00015872,2]
[419094494,1774866639202,-2535.55162881,0.00015872,2]
[419094495,1774866639211,-369.50007954,0.00015873,2]
[419094496,1774866639221,-500.53190228,0.00015873,2]
[419094497,1774866639232,-167.60668352,0.00015873,2]
[419094498,1774866639241,-500.0,0.00015873,2]
[419094499,1774866639251,-500.13692831,0.00015873,2]
[419094500,1774866639261,-500.0,0.00015873,2]
[419094501,1774866639271,-500.0,0.00015873,2]
[419094502,1774866639281,-38819.2292879,0.00015874,2]
[419094503,1774866639290,-45517.3848149,0.00015874,2]
[419094504,1774866639300,-7577.1331898,0.00015874,2]
[419094505,1774866639311,-1213.0935936,0.00015874,2]
[419094506,1774866639321,-607.299641,0.00015874,2]
[419094507,1774866639330,-607.299641,0.00015874,2]
[419094508,1774866639340,-607.299641,0.00015874,2]
[419094509,1774866639350,-607.299641,0.00015874,2]
[419094510,1774866639359,-151.0,0.00015879,2]
[419094511,1774866639369,-347.69691234,0.00015879,2]
[419094512,1774866639379,-307.30134809,0.00015879,2]
[419094513,1774866639388,-500.0,0.00015879,2]
[419094514,1774866639397,-500.0,0.00015879,2]
[419094515,1774866639407,-500.0,0.00015879,2]
[419094516,1774866639416,-500.0,0.00015879,2]
[419094517,1774866639426,-500.0,0.00015879,2]
[419094518,1774866639435,-500.0,0.00015879,2]
[419094519,1774866639444,-500.0,0.00015879,2]
[419094520,1774866639455,-500.0,0.00015879,2]
[419094521,1774866639465,-500.0,0.00015879,2]
[419094522,1774866639474,-500.0,0.00015879,2]
[419094523,1774866639484,-500.0,0.00015879,2]
[419094524,1774866639493,-500.0,0.00015879,2]
[419094525,1774866639503,-500.0,0.00015879,2]
[419094526,1774866639513,-500.0,0.00015879,2]
[419094527,1774866639522,-500.0,0.00015879,2]
[419094528,1774866639532,-500.0,0.00015879,2]
[419094529,1774866639542,-393.57397861,0.00015879,2]
[419094530,1774866639552,-500.0,0.00015879,2]
[419094531,1774866639561,-500.0,0.00015879,2]
[419094532,1774866639570,-500.0,0.00015879,2]
[419094533,1774866639579,-500.0,0.00015879,2]
[419094534,1774866639588,-500.0,0.00015879,2]
[419094535,1774866639599,-500.0,0.00015879,2]
[419094536,1774866639608,-500.0,0.00015879,2]
[419094537,1774866639618,-300.0,0.00015879,2]
[419094538,1774866639627,-2388.41395033,0.00015882,2]
[419094539,1774866639637,-382.36814293,0.00015897,2]
[419094540,1774866639646,-500.0,0.00015899,2]
[419094541,1774866639656,-500.0,0.00015899,2]
[419094542,1774866639666,-500.0,0.00015899,2]
[419094543,1774866639675,-548.98235431,0.00015899,2]
[419094544,1774866639685,-500.0,0.00015899,2]
[419094545,1774866639694,-302.0,0.000159,2]
[419094546,1774866639704,-5000.0,0.000159,2]
[419094547,1774866639713,-1050.3300675,0.000159,2]
[419094548,1774866639722,-160.79068427,0.000159,2]
[419094549,1774866639732,-2388.41395033,0.000159,2]
[419094550,1774866639742,-383.03129412,0.000159,2]
[419094551,1774866639752,-288.38852556,0.000159,2]
[419094552,1774866639761,-35112.9915903,0.000159,2]
[419094553,1774866639771,-2180.47123693,0.000159,2]
[419094554,1774866639780,-187.78006525,0.00015936,2]
[419094555,1774866639789,-500.0,0.00015956,2]
[419094556,1774866639799,-500.0,0.00015956,2]
[419094557,1774866639809,-3645.56059989,0.0001596,2]
[419094558,1774866639818,-151.0,0.0001596,2]
[419094559,1774866639828,-171.0,0.0001597,2]
[419094560,1774866639837,-503.38413712,0.00015973,2]
[419094561,1774866639846,-226.51347201,0.00015973,2]
[419094562,1774866639856,-264.52314394,0.00015973,2]
[419094563,1774866639865,-500.0,0.00015973,2]
[419094564,1774866639875,-500.0,0.00015973,2]
[419094565,1774866639884,-500.0,0.00015973,2]
[419094566,1774866639894,-151.0,0.00015973,2]
[419094567,1774866639904,-151.0,0.00015973,2]
[419094568,1774866639915,-151.0,0.00015973,2]
[419094569,1774866639926,-151.0,0.00015997,2]
[419094570,1774866639937,-742.99189388,0.00015999,2]
[419094571,1774866639946,-200.0,0.00015999,2]
[419094572,1774866639958,-393.559,0.00015999,2]
[419094573,1774866639968,-500.0,0.00015999,2]
[419094574,1774866639980,-500.0,0.00015999,2]
[419094575,1774866639990,-500.0,0.00015999,2]
[419094576,1774866639999,-347.13414899,0.00015999,2]
[419094577,1774866640009,-281.61641343,0.00015999,2]
[419094578,1774866640019,-500.55475989,0.00015999,2]
[419094579,1774866640028,-207.8534478,0.00015999,2]
[419094580,1774866640038,-504.60520065,0.00015999,2]
[419094581,1774866640048,-504.2318241,0.00015999,2]
[419094582,1774866640057,-433.378356,0.00015999,2]
[419094583,1774866640067,-433.378356,0.00015999,2]
[419094584,1774866640077,-433.378356,0.00015999,2]
[419094585,1774866640086,-433.378356,0.00015999,2]
[419094586,1774866640096,-1393161.24606963,0.00016,2]
[419094607,1774866641584,-1306.980303,0.00016,2]
[419094608,1774866641614,-691.98084141,0.00016,2]
[419094609,1774866641626,-370.00590246,0.00016,2]
[419094610,1774866641636,-24864.07874379,0.00016,2]
[419094611,1774866641679,-1174.3108015,0.00016,2]
[419094612,1774866641720,-3579.0381034,0.00016,2]
[419094615,1774866642473,-151.0,0.00015874,2]
[419094616,1774866642483,-151.0,0.00015874,2]
[419094617,1774866642492,-500.0,0.00015879,2]
[419094618,1774866642502,-330.68254729,0.00015886,2]
[419094619,1774866642513,-2204.86908152,0.00015886,2]